[Event "2nd Serbia Open Masters 2022"]
[Site "Novi Sad"]
[Date "2022.06.28"]
[Round "1.1"]
[White "Predke, Alexandr"]
[Black "Spasic, Petar"]
[Result "1/2-1/2"]
[ECO "B62"]
[WhiteElo "2688"]
[BlackElo "2336"]
[Annotator "TA"]
[PlyCount "120"]
[EventDate "2022.06.28"]
[EventType "swiss"]
[EventCountry "SRB"]
[SourceTitle "playchess.com"]
[Source "ChessBase"]
[SourceQuality "1"]
[TimeControl "40/5400+30:900+30"]

{[%evp 14,120,54,41,58,0,24,14,10,0,-7,-25,0,0,0,0,0,0,11,0,0,0,0,0,41,0,9,0,0,0,0,0,0,-10,-30,-17,-26,-21,0,-48,-48,-42,-64,-90,-111,-103,-93,-102,-43,-48,-20,-19,-19,-19,-8,-75,-75,-76,-80,-238,-238,-224,-227,-306,-244,-222,-124,-124,-124,-124,-124,-124,-118,-118,-118,-394,-310,-1111,-1026,-29966,-29968,-29968,-29968,-29968,-29969,-29969,-29970,-29971,-29972,-29972,-29973,-29973,-29973,-29974,-29975,-29975,0,0,0,0,0,0,0,0,0,0,0,0,0]} 1. e4 {[%emt 0:00:10]} c5 {[%emt 0:00:43]} 2. Nf3 {[%emt 0:00:08]} Nc6 {[%emt 0:00:20]} 3. Nc3 {[%emt 0:00:21]} d6 {[%emt 0:00:11]} 4. d4 {[%emt 0:00:15]} cxd4 {[%emt 0:00:06]} 5. Nxd4 {[%emt 0:00:04]} Nf6 {[%emt 0:00:11]} 6. Bg5 {[%emt 0:00:25]} e6 {[%emt 0:00:08]} 7. Qd3 {[%emt 0:00:47]} a6 {[%emt 0:02:56]} 8. O-O-O {[%emt 0:02:14] 8.Nxc6 is more fashionable.} Bd7 {[%emt 0:04:19] B62: Sicilian: Richter-Rauzer: 6...e6: Unusual White 7th moves.} 9. Qg3 {[%emt 0:23:00]} (9. f4 $14) 9... Qc7 {[%emt 0:11:42]} 10. Be2 {[%emt 0:14:59] [#]} b5 $146 {[%emt 0:06:12]} ({Predecessor:} 10... Be7 11. f4 h6 12. Bh4 Rg8 13. Nxc6 Bxc6 14. Qe3 Nxe4 15. Nxe4 Bxe4 16. Qxe4 Bxh4 17. f5 Bg5+ 18. Kb1 O-O-O 19. fxe6 fxe6 20. Qxe6+ {½-½ (20) Mkrtchyan,L (2213)-Renteria Becerra,J (2262) Madrid 2021}) 11. Bxb5 {[%emt 0:01:14]} axb5 {[%emt 0:01:15]} 12. Ndxb5 {[%emt 0:00:03]} Qb8 {[%emt 0:00:53][%cal Of6e4]} (12... Qa5 $5 {[%cal Rf6e4]} 13. Nxd6+ (13. Bxf6 gxf6 14. Nxd6+ Bxd6 $11) 13... Bxd6 14. Rxd6 Nh5 $11) 13. Nxd6+ {[%emt 0:03:51]} Bxd6 {[%emt 0:01:01]} 14. Qxd6 {[%emt 0:00:09]} Qxd6 {[%emt 0:01:33]} 15. Rxd6 {[%emt 0:00:05]} Ra5 {[%emt 0:13:36]} 16. Bxf6 {[%emt 0:09:38]} gxf6 {[%emt 0:00:07]} 17. Rhd1 {[%emt 0:00:03]} Nb8 {[%emt 0:00:46]} 18. b4 {[%emt 0:05:59]} Rh5 {[%emt 0:03:02]} 19. h3 {[%emt 0:11:01][%mdl 1024] next Rb6 is good for White. White has compensation.} (19. Rb6 $5 {[%cal Rb6b8]} Ke7 20. h3 $11) 19... Ke7 {[%emt 0:00:42]} 20. Rb6 {[%emt 0:00:04]} Rc8 {[%emt 0:01:24]} 21. Kb2 {[%emt 0:00:04]} Bc6 $1 {[%emt 0:07:01] Against Rb7+} 22. a4 {[%emt 0:03:09]} f5 {[%emt 0:07:17]} (22... Nd7 $5 23. Ra6 Rc7 $11) 23. exf5 {[%emt 0:00:19]} Bxg2 {[%emt 0:00:50]} 24. fxe6 {[%emt 0:02:24]} fxe6 {[%emt 0:00:47] Strongly threatening ...Nd7.} 25. Re1 {[%emt 0:04:07]} Nc6 {[%emt 0:16:02]} 26. Ne4 {[%emt 0:05:55]} (26. Rb7+ $11 {feels stronger.} Kf6 27. Ne4+ Bxe4 28. Rxe4) 26... Ne5 $15 {[%emt 0:04:52]} 27. Rb7+ $1 {[%emt 0:06:24]} Kf8 {[%emt 0:00:35] White must now prevent ...Rh4.} 28. Nf6 {[%emt 0:00:13][%csl LRh5,LRh7]} Nc4+ {[%emt 0:04:13]} (28... Rxh3 $6 29. Nxh7+ Kg8 30. Rg1 Nc4+ 31. Ka2 Ra3+ 32. Kb1 Nd2+ 33. Kb2 Nc4+ 34. Kb1 Nd2+ 35. Kb2 Nc4+ 36. Kb1 $11) 29. Ka2 {[%emt 0:00:16]} Bxb7 {[%emt 0:06:46]} (29... Rxh3 $6 30. Nxh7+ Kg8 31. Rg1 Ra3+ 32. Kb1 Nd2+ 33. Kb2 Nc4+ 34. Kb1 Nd2+ 35. Kb2 Nc4+ 36. Kb1 $11) 30. Nxh5 {[%emt 0:00:04]} Nb6 {[%emt 0:00:57]} (30... e5 $17 31. a5 Ke7) 31. Nf4 $1 {[%emt 0:00:39]} Rxc2+ {[%emt 0:02:09]} 32. Kb3 {[%emt 0:00:03]} Rxf2 {[%emt 0:00:10]} 33. Nxe6+ {[%emt 0:00:04]} Kg8 {[%emt 0:00:08] And now ...Bd5+ would win.} 34. Nc5 {[%emt 0:00:49]} (34. b5 $11 {remains equal.}) 34... Rf3+ $17 {[%emt 0:00:59]} 35. Kc2 {[%emt 0:00:04]} Bc8 {[%emt 0:00:59]} 36. Re7 $2 {[%emt 0:02:55]} (36. a5 $17 Bf5+ 37. Kd2 Nc4+ 38. Ke2) 36... Bf5+ $19 {[%emt 0:02:41]} (36... Rxh3 37. a5 Kf8 38. Ra7 Bf5+ 39. Kd2 Nc4+ 40. Ke2 $17) (36... Bxh3 $2 37. Re8+ (37. a5 $2 Bf5+ 38. Kd1 Nd5 $19) 37... Kf7 38. Rd8) 37. Kd2 {[%emt 0:00:04]} Nd5 {[%emt 0:00:29]} (37... Rxh3 38. a5 Nc4+ 39. Ke1 $17) 38. Rb7 {[%emt 0:04:46]} Rf2+ {[%emt 0:00:31]} (38... Bxh3 39. a5 $15) 39. Ke1 {[%emt 0:00:02] [#]} Rc2 {[%emt 0:00:40]} (39... Ra2 $1 $19 40. b5 Bxh3 41. Rb8+ Kf7) 40. a5 $17 {[%emt 0:00:00] [#]} Nxb4 {[%emt 0:00:00][%mdl 512] Threatens to win with ...Rc1+.} 41. a6 {[%emt 0:04:47]} Nc6 {[%emt 0:01:09]} ({Don't take} 41... Bxh3 42. a7 (42. Rxb4 Rxc5 43. a7 Bg2 $11) 42... Ra2 43. Rb8+ Kg7 44. a8=Q Rxa8 45. Rxa8 $16) 42. Na4 {[%emt 0:00:53]} Bc8 {[%emt 0:01:38]} 43. Rb8 {[%emt 0:00:06]} Na7 {[%emt 0:00:56] Hoping for ...Kf7.} (43... Nxb8 $2 44. a7 Nc6 45. a8=Q $18) 44. Nb6 $2 {[%emt 0:08:38][%mdl 8192]} (44. Ra8 $17 {is the only way for White.}) 44... Rb2 $19 {[%emt 0:00:37]} 45. Rxc8+ $2 {[%emt 0:01:35]} (45. h4) 45... Nxc8 {[%emt 0:00:06]} 46. Nxc8 {[%emt 0:00:02][%mdl 4096] Endgame KR-KN} Ra2 {[%emt 0:00:22]} 47. a7 {[%emt 0:00:08]} Kg7 {[%emt 0:00:14]} 48. Kd1 {[%emt 0:00:13]} Kf6 {[%emt 0:00:10]} 49. Kc1 {[%emt 0:00:09]} Kg5 {[%emt 0:00:18]} 50. Kb1 {[%emt 0:00:03]} Ra6 {[%emt 0:01:44]} 51. Kb2 {[%emt 0:00:01]} Kh4 {[%emt 0:01:54]} 52. Kb3 {[%emt 0:00:03]} Kxh3 {[%emt 0:00:05]} 53. Kb4 {[%emt 0:00:01]} h5 {[%emt 0:01:54]} 54. Kb5 {[%emt 0:00:01] [#]} Ra1 $2 {[%emt 0:00:08]} (54... Rxa7 $1 {[%mdl 512] mates} 55. Nxa7 h4 56. Nc8 Kg4 57. Nd6 h3 58. Ne8 Kf4 59. Nd6 h2 60. Kc5 h1=Q 61. Nc4 Qe4 62. Nd6 Qe5+ 63. Kc6 Qd4 64. Nb5 Qc4+ 65. Kb6 Ke5 66. Nc7 Qb4+ 67. Kc6 Qd6+ 68. Kb7 Qc5 69. Ne8 Qb5+ 70. Ka8 Qxe8+ 71. Ka7 Kd6 72. Kb7 Qb5+ 73. Ka8 Kc7 74. Ka7 Qb7#) 55. Kb6 $1 $11 {[%emt 0:00:04] The position is equal.} Kg4 {[%emt 0:01:33]} (55... h4 $5 56. Nd6 Kg4 $11) 56. Nd6 $1 {[%emt 0:01:29]} Kf4 {[%emt 0:08:59]} 57. Nc4 $1 {[%emt 0:00:10] aiming for Na5.} (57. Kb7 h4 58. a8=Q Rxa8 59. Kxa8 h3 60. Kb7 h2 61. Kb6 h1=Q 62. Kc5 Qg1+ 63. Kd5 Qg2+ 64. Ke6 Qe2+ 65. Kd5 Qe5+ 66. Kc6 Qd4 67. Nc8 Ke5 68. Nb6 Qc3+ 69. Kb5 Kd4 70. Ka6 Qb3 71. Kb7 Kc5 72. Kc7 Qxb6+ 73. Kd7 Qf6 74. Kc8 Kc6 75. Kb8 Qb2+ 76. Kc8 Qh8#) 57... Rxa7 {[%emt 0:00:15]} 58. Kxa7 {[%emt 0:00:03]} h4 {[%emt 0:01:54]} 59. Nd2 {[%emt 0:00:04]} h3 {[%emt 0:00:22] ( -> ...h2)} 60. Nf1 {[%emt 0:00:04]} Kf3 {[%emt 0:00:16] Whites escaped into a draw.  Weighted Error Value: White=0.44/Black=0.15 (very precise)} 1/2-1/2

[Event "2nd Serbia Open Masters 2022"]
[Site "Novi Sad"]
[Date "2022.06.28"]
[Round "1.2"]
[White "Trisic, Aleksandar"]
[Black "Sarana, Alexey"]
[Result "0-1"]
[ECO "E50"]
[WhiteElo "2345"]
[BlackElo "2675"]
[Annotator "TA"]
[PlyCount "72"]
[EventDate "2022.06.28"]
[EventType "swiss"]
[EventCountry "SRB"]
[SourceTitle "playchess.com"]
[Source "ChessBase"]
[SourceQuality "1"]
[TimeControl "40/5400+30:900+30"]

{[%evp 11,72,4,24,14,20,-4,27,23,14,18,22,14,24,0,0,-30,23,20,46,46,46,46,41,31,0,-23,0,-83,-79,-71,-61,-76,-102,-256,-245,-316,-232,-230,-234,-219,-221,-216,-179,-175,-97,-884,-108,-100,-110,-108,5,7,7,-1141,1883,-129,47,-42,156,0,1310,-1299,226]} 1. d4 {[%emt 0:00:18]} Nf6 {[%emt 0:00:05]} 2. c4 {[%emt 0:00:05]} e6 {[%emt 0:00:07]} 3. Nc3 {[%emt 0:00:09]} Bb4 {[%emt 0:00:24]} 4. e3 {[%emt 0:02:06]} O-O {[%emt 0:00:26]} 5. Bd3 {[%emt 0:00:10]} c5 {[%emt 0:00:29]} 6. Nf3 {[%emt 0:00:52]} d6 {[%emt 0:02:13]} 7. Bd2 {[%emt 0:06:23] E50: Nimzo-Indian: Rubinstein: 4...0-0 5 Nf3.} cxd4 $5 {[%emt 0:06:12][%mdl 4] Leaves trodden paths.} 8. Nxd4 {[%emt 0:05:32]} Nc6 {[%emt 0:01:28]} (8... e5 $5 {[%cal Re5d4]} 9. Nc2 Na6 $11) 9. a3 {[%emt 0:04:15] [#] Black must now prevent Nxc6. White has an edge.} Bc5 $146 {[%emt 0:01:04]} ({Predecessor:} 9... Ba5 10. O-O Ne5 11. Be2 Bd7 12. b4 Bb6 13. Qb3 Qe7 14. Rad1 Rac8 15. Bc1 Rfd8 {1-0 (47) Neto,H (2566)-Kashlyak,A (2511) ICCF email 2007}) 10. Nf3 {[%emt 0:05:27]} a6 {[%emt 0:01:55]} 11. Qc2 {[%emt 0:05:23]} Bd7 {[%emt 0:01:58]} 12. Ng5 {[%emt 0:10:51][%cal Rd3h7]} h6 {[%emt 0:00:38]} 13. Nge4 {[%emt 0:00:04]} Nxe4 {[%emt 0:02:20]} ({Black should try} 13... Ba7) 14. Nxe4 $11 {[%emt 0:00:05]} f5 {[%emt 0:00:50]} (14... Ne5 {feels hotter.} 15. Be2 Bc6 16. Nxc5 dxc5 17. Bc3 Ng6) 15. Nxc5 {[%emt 0:00:06]} dxc5 {[%emt 0:00:04]} 16. Bc3 {[%emt 0:01:10]} e5 {[%emt 0:00:28]} 17. b4 {[%emt 0:09:06]} Qe7 {[%emt 0:02:33][%cal Rc5b4]} 18. Qb2 {[%emt 0:00:18]} f4 $1 {[%emt 0:03:16]} 19. O-O-O {[%emt 0:07:59]} (19. O-O $11 {remains equal.}) 19... fxe3 $17 {[%emt 0:05:11]} 20. fxe3 {[%emt 0:02:41]} cxb4 {[%emt 0:03:58]} 21. axb4 {[%emt 0:01:39]} a5 {[%emt 0:07:27]} 22. b5 {[%emt 0:01:57]} (22. bxa5 $17 Be6 23. h3 (23. Bxe5 Nxe5 24. Qxe5 Qa3+ 25. Kb1 Bg4 $17)) 22... Nb4 $19 {[%emt 0:00:39]} 23. Be4 {[%emt 0:13:26]} Rac8 {[%emt 0:06:01]} 24. Qb3 {[%emt 0:09:17]} Be6 {[%emt 0:00:16]} 25. Bxb4 {[%emt 0:00:28]} axb4 {[%emt 0:00:03]} 26. Bd5 {[%emt 0:01:26]} Rf2 {[%emt 0:00:32]} 27. Kb1 {[%emt 0:03:11]} ({Avoid the trap} 27. Rd2 $2 {[#]} Bxd5 $1 28. Rxd5 (28. Rxf2 $2 {too greedy.} Bxc4 29. Qb2 Qc5 $19) 28... Ra8 $19) 27... Qf7 {[%emt 0:09:35]} (27... Bxd5 $19 28. Rxd5 Qh4) 28. Qxb4 {[%emt 0:05:52][%mdl 8192]} (28. Qd3 $17) 28... b6 $2 {[%emt 0:06:38]} (28... Qg6+ $19 {has better winning chances.} 29. e4 Bxd5 30. cxd5 Qxg2) 29. Qd6 $17 {[%emt 0:02:21][%csl LRb6,LRe5,LRe6]} Bxd5 {[%emt 0:00:37]} 30. Qxd5 {[%emt 0:00:01]} Rc7 {[%emt 0:38:03] Black is more active.} (30... Rxc4 $17 {aiming for ...Rb4+.} 31. Qxf7+ Kxf7) 31. Qxf7+ $11 {[%emt 0:00:00]} Kxf7 {KRR-KRR} 32. Rd7+ $2 {[%emt 0:02:16][%mdl 8192]} Kg8 $4 {[%emt 0:00:00][%mdl 8192]} (32... Rxd7 $19 33. g4 Rd3) 33. Rd5 $2 {[%emt 0:00:29]} (33. Rxc7 $18 Rf6 34. c5 bxc5 35. Rc8+ Kh7 36. Rc6) 33... e4 $2 {[%emt 0:00:00]} ({But not} 33... Rxg2 $6 34. c5 $11) ({Better is} 33... Rxc4 $17 {Threatens to win with ...Re4.} 34. Rxe5 Rb4+ 35. Kc1 Rxg2) 34. g4 {[%emt 0:00:58]} (34. Rd8+ $14 Kf7 35. Rc1) 34... Rf8 $2 {[%emt 0:00:00]} (34... Rxc4 $15 {keeps the upper hand.} 35. h4 Rb4+ 36. Kc1 Rb3) 35. Rd2 $2 {[%emt 0:00:00]} (35. Rc1 $16) 35... Rd7 $2 {[%emt 0:01:04][%mdl 8192]} 36. Rf2 $4 {[%emt 0:00:00][%mdl 8192]} (36. Rxd7 $18 Ra8 37. Kb2) 36... g5 $4 {[%emt 0:00:00][%mdl 40960] Weighted Error Value: White=1.12/Black=0.73. Loss on time!?} (36... Rxf2 $19 {avoids the disaster.} 37. c5 Rd3 38. cxb6 Rb3+ 39. Kc1 Rxb5) 0-1

[Event "2nd Serbia Open Masters 2022"]
[Site "Novi Sad"]
[Date "2022.06.28"]
[Round "1.3"]
[White "Demchenko, Anton"]
[Black "Dixit, Nikhil"]
[Result "1/2-1/2"]
[ECO "A48"]
[WhiteElo "2654"]
[BlackElo "2331"]
[Annotator "TA"]
[PlyCount "94"]
[EventDate "2022.06.28"]
[EventType "swiss"]
[EventCountry "SRB"]
[SourceTitle "playchess.com"]
[Source "ChessBase"]
[SourceQuality "1"]
[TimeControl "40/5400+30:900+30"]

{[%evp 11,94,0,0,0,33,39,29,41,34,39,44,42,50,49,55,37,59,43,55,52,58,58,47,36,52,41,42,22,55,29,109,95,112,69,96,-14,-9,-19,-3,-22,0,-46,0,0,0,-73,-51,-92,0,0,0,0,0,-16,-26,-168,-72,-90,-75,-82,-75,-75,-75,-82,0,-8,-8,-61,8,8,8,8,8,8,8,8,8,0,17,17,17,0,0,0,0]} 1. d4 {[%emt 0:00:04]} Nf6 {[%emt 0:00:09]} 2. Nf3 {[%emt 0:00:07]} g6 {[%emt 0:00:17]} 3. Bf4 {[%emt 0:00:22]} Bg7 {[%emt 0:00:50]} 4. c3 {[%emt 0:00:04]} O-O {[%emt 0:00:41]} 5. Nbd2 {[%emt 0:00:30]} d6 {[%emt 0:01:19]} 6. e4 {[%emt 0:00:59]} Nbd7 {[%emt 0:06:14]} 7. Be2 {[%emt 0:01:06] A48: 1 d4 Nf6 2 Nf3 g6: Torre, London and Colle Systems.} Nh5 {[%emt 0:03:32]} 8. Be3 {[%emt 0:00:58]} e5 {[%emt 0:01:05]} 9. O-O {[%emt 0:01:36] White has an edge.} Qe7 {[%emt 0:01:50]} 10. Re1 {[%emt 0:04:39] [#]} h6 $146 {[%emt 0:05:57]} ({Predecessor:} 10... b6 11. a4 a5 12. Qc2 Bb7 13. Rab1 Kh8 14. dxe5 dxe5 15. Rbd1 Nc5 16. g3 Nf6 {1-0 (79) Demchenko,A (2641)-Potapova,M (2270) Chess.com INT 2020}) 11. h3 {[%emt 0:06:12]} Re8 {[%emt 0:04:21]} 12. Bf1 {[%emt 0:06:45]} Nf8 {[%emt 0:04:04]} 13. Nc4 {[%emt 0:04:22]} Bd7 {[%emt 0:03:33]} 14. g3 {[%emt 0:14:18]} a5 {[%emt 0:04:32]} 15. a4 {[%emt 0:02:40]} Bc6 {[%emt 0:05:40]} 16. d5 {[%emt 0:07:10]} Bd7 {[%emt 0:00:15]} 17. b4 {[%emt 0:01:19]} b6 {[%emt 0:10:07]} 18. bxa5 {[%emt 0:00:30]} bxa5 {[%emt 0:00:04]} 19. Nfd2 {[%emt 0:02:14]} Nh7 {[%emt 0:04:34]} 20. Nb3 {[%emt 0:01:37]} Ng5 {[%emt 0:01:34]} (20... Rf8 $11) 21. Bxg5 $16 {[%emt 0:00:36]} Qxg5 {[%emt 0:02:59]} 22. h4 {[%emt 0:09:56]} ({Much less strong is} 22. Ncxa5 f5 $14) (22. Nbxa5 {is interesting.} f5 23. h4 Qf6 24. exf5 Qxf5 25. Ne3) 22... Qe7 {[%emt 0:07:38]} 23. Bd3 {[%emt 0:00:54]} (23. Ncxa5 $16 Reb8 24. Bb5) 23... Rf8 $11 {[%emt 0:01:49]} 24. Ne3 {[%emt 0:13:07]} Nf6 {[%emt 0:01:40]} 25. Nd2 {[%emt 0:02:47]} h5 {[%emt 0:02:00]} 26. c4 {[%emt 0:06:19]} (26. Bb5 $11) 26... Bh6 {[%emt 0:02:35]} (26... Rfb8 $15) 27. c5 {[%emt 0:00:09]} dxc5 {[%emt 0:05:44]} 28. Ndc4 {[%emt 0:00:06]} (28. Nec4 $11) 28... Rfb8 $17 {[%emt 0:00:51]} 29. Qd2 {[%emt 0:00:55][%cal Oe3f5]} Rb4 {[%emt 0:02:54]} ({Black should try} 29... Ng4 $17) 30. Nf5 $1 $11 {[%emt 0:04:14]} Bxd2 {[%emt 0:13:39]} 31. Nxe7+ {[%emt 0:00:06] Pair of Knights!} Kf8 {[%emt 0:00:09]} 32. Nxd2 {[%emt 0:01:38] [#] Black must now prevent Nc6.} Kxe7 {[%emt 0:00:49]} 33. Nc4 {[%emt 0:00:05]} (33. Rec1 $11) 33... Rxa4 {[%emt 0:01:09]} (33... Bxa4 $19 {and Black stays clearly on top. And now ...Nd7 would win.} 34. Bf1 Nd7) 34. Nxe5 {[%emt 0:00:36]} Rxa1 {[%emt 0:00:14]} 35. Rxa1 {[%emt 0:00:02]} a4 {[%emt 0:00:22]} 36. f3 {[%emt 0:05:14]} a3 {[%emt 0:00:14]} 37. Kf2 {[%emt 0:01:01] [#]} c6 {[%emt 0:01:27]} ({Resist} 37... a2 38. Bc4 $16) (37... Ne8 $1 $17) 38. dxc6 {[%emt 0:01:54]} Be6 {[%emt 0:00:31]} 39. Bc4 {[%emt 0:00:08]} (39. Nc4 $11) 39... a2 {[%emt 0:00:48]} ({Black should play} 39... Ne8 $1 $15) 40. c7 {[%emt 0:00:00][%cal Oa1a2] The position is equal.} Ne8 $132 {[%emt 0:00:00][%mdl 2048] Black is not holding back} 41. c8=Q {[%emt 0:04:57]} Bxc8 {[%emt 0:02:51]} 42. Rxa2 {[%emt 0:08:13]} (42. Bxa2 $2 Nd6 43. Nc6+ Kf8 $19) 42... Rxa2+ {[%emt 0:00:07]} 43. Bxa2 {[%emt 0:00:01] KBN-KBN} Be6 {[%emt 0:00:31]} 44. Bb1 {[%emt 0:01:45]} Nf6 {[%emt 0:01:37]} 45. Ke3 {[%emt 0:00:20]} Nd7 {[%emt 0:01:21]} 46. Nd3 {[%emt 0:00:02]} Kd6 {[%emt 0:00:44]} 47. Nf4 {[%emt 0:03:59]} Bb3 {[%emt 0:00:37] Weighted Error Value: White=0.22 (precise) /Black=0.20 (precise)} 1/2-1/2

[Event "2nd Serbia Open Masters 2022"]
[Site "Novi Sad"]
[Date "2022.06.28"]
[Round "1.4"]
[White "Blagojevic, Tijana"]
[Black "Ivic, Velimir"]
[Result "0-1"]
[ECO "B30"]
[WhiteElo "2315"]
[BlackElo "2623"]
[Annotator "TA"]
[PlyCount "104"]
[EventDate "2022.06.28"]
[EventType "swiss"]
[EventCountry "SRB"]
[SourceTitle "playchess.com"]
[Source "ChessBase"]
[SourceQuality "1"]
[TimeControl "40/5400+30:900+30"]

{[%evp 11,104,17,27,13,39,13,22,22,16,-9,-15,-18,0,0,0,0,0,0,0,-29,-42,-41,0,0,0,-52,-18,-21,0,-5,0,0,0,0,0,-35,-46,-85,-23,-33,-28,-23,-26,-29,-27,-42,-46,-57,-38,-96,-90,-98,-88,-134,-124,-129,-118,-102,-103,-115,-123,-167,-158,-158,-152,-175,-180,-190,-164,-170,-176,-172,-176,-232,-216,-508,-505,-479,-471,-427,-358,-601,-601,-585,-584,-767,-760,-740,-716,-725,-675,-29996,-29997,-29997,-29998]} 1. e4 {[%emt 0:00:05]} c5 {[%emt 0:00:24]} 2. Nf3 {[%emt 0:00:11]} Nc6 {[%emt 0:00:17]} 3. Bb5 {[%emt 0:00:12]} e6 {[%emt 0:00:34]} 4. O-O {[%emt 0:01:11]} Nge7 {[%emt 0:00:11]} 5. Re1 {[%emt 0:01:31]} Nd4 {[%emt 0:01:20]} 6. Nxd4 {[%emt 0:00:50]} cxd4 {[%emt 0:00:06]} 7. d3 {[%emt 0:02:32] B30: Sicilian: 2...Nc6 3 Bb5, lines without ...g6.} Ng6 $5 {[%emt 0:01:03][%mdl 4] [#] A promising side line.} 8. f4 $146 {[%emt 0:05:15]} ({Predecessor:} 8. Qh5 Qc7 9. Ba4 Qc5 10. Qxc5 Bxc5 11. Nd2 a6 12. Nf3 b5 13. Bb3 Bb7 14. c3 dxc3 15. bxc3 {½-½ (31) Stevic,H (2581)-Smirin,I (2616) Terme Catez 2021}) 8... Bd6 {[%emt 0:07:12]} 9. Rf1 {[%emt 0:07:17] The position is equal.} Qc7 {[%emt 0:05:42][%cal Rd6f4]} 10. e5 {[%emt 0:02:52]} Be7 {[%emt 0:01:50]} 11. Nd2 {[%emt 0:05:29]} a6 {[%emt 0:06:00]} 12. Ba4 {[%emt 0:00:38]} b5 {[%emt 0:00:10]} 13. Bb3 {[%emt 0:00:10]} d6 {[%emt 0:00:53]} 14. exd6 {[%emt 0:12:56]} Bxd6 {[%emt 0:00:42]} 15. Qf3 {[%emt 0:02:08] [#]} O-O $1 {[%emt 0:07:16][%cal Rd6f4]} 16. Ne4 {[%emt 0:00:08]} (16. Qxa8 Bb7 17. Qa7 Bc5 18. Qxb7 Qxb7 $17) 16... Bd7 {[%emt 0:00:34]} 17. Qf2 {[%emt 0:06:13]} Be7 {[%emt 0:06:11]} 18. Kh1 {[%emt 0:00:42]} (18. a4 $11) 18... f5 {[%emt 0:09:43]} (18... a5 $5 {[%cal Ra5a4]} 19. a4 (19. Qxd4 $2 a4 $19) 19... bxa4 20. Bxa4 Rfc8 $15) 19. Ng3 {[%emt 0:04:21]} Bc5 {[%emt 0:02:00]} 20. Bd2 {[%emt 0:01:40]} Kh8 {[%emt 0:00:53]} 21. a4 {[%emt 0:02:40]} Rae8 {[%emt 0:02:18]} 22. axb5 {[%emt 0:02:30]} axb5 {[%emt 0:00:05]} 23. Nh5 {[%emt 0:04:11]} Bc6 {[%emt 0:01:47]} 24. Rae1 {[%emt 0:01:36]} Qd6 {[%emt 0:00:42]} (24... e5 $1 $17 {[%cal Re5e4] And now ...e4 would win.} 25. fxe5 f4) 25. Qg3 {[%emt 0:00:50]} Bd5 {[%emt 0:00:53]} 26. Bxd5 {[%emt 0:00:38]} Qxd5 {[%emt 0:00:29]} 27. Re5 {[%emt 0:00:30]} Qc6 {[%emt 0:01:25] White should prevent ...Be7.} 28. Rfe1 {[%emt 0:01:22]} Rf7 {[%emt 0:05:18]} 29. R5e2 {[%emt 0:00:33]} Qd5 {[%emt 0:01:12]} 30. Qf3 {[%emt 0:03:52]} (30. Ra1 $15) 30... Qxf3 $17 {[%emt 0:01:32] Black is more active. Black keeps a firm grip on the game.} 31. gxf3 {[%emt 0:00:03]} Nf8 {[%emt 0:05:38]} 32. Re5 {[%emt 0:00:21]} (32. Ng3 $142) 32... Rc8 {[%emt 0:01:13]} 33. c3 {[%emt 0:06:00] Prevents b4.} Rb7 {[%emt 0:02:40]} 34. Rc1 {[%emt 0:01:49] Strongly threatening cxd4.} Ba7 {[%emt 0:01:21]} 35. Ree1 {[%emt 0:03:04]} Kg8 {[%emt 0:04:16]} 36. cxd4 {[%emt 0:01:57]} Rxc1 {[%emt 0:01:12]} 37. Rxc1 {[%emt 0:00:05][%cal Od4d5]} Bxd4 {[%emt 0:00:10]} 38. Rc8 {[%emt 0:00:30]} Kf7 $1 {[%emt 0:00:20]} (38... Bxb2 39. Bb4 Rf7 40. Rb8 $15) 39. Bc3 {[%emt 0:21:08]} Rd7 {[%emt 0:07:59]} 40. Ng3 {[%emt 0:00:00]} Ng6 {[%emt 0:00:00]} 41. Ne2 {[%emt 0:06:14]} Be3 {[%emt 0:09:20]} 42. Rb8 {[%emt 0:00:43] [#]} (42. Kg2 $142) 42... Nh4 $1 $19 {[%emt 0:04:53]} (42... Rxd3 43. Rb7+ Ke8 44. Kg2) ({Inferior is} 42... Nxf4 43. Nxf4 Bxf4 44. Rxb5 $17) 43. Rxb5 $2 {[%emt 0:01:47]} (43. h3) 43... Rxd3 {[%emt 0:01:05]} 44. Rb7+ {[%emt 0:00:11]} Ke8 {[%emt 0:00:08]} 45. h3 {[%emt 0:00:28]} ({Weaker is} 45. Rb8+ Kd7 46. h3 g5 47. fxg5 Rd1+ 48. Kh2 f4 $19) 45... g5 {[%emt 0:04:32]} 46. Rxh7 $2 {[%emt 0:03:57] [#]} (46. fxg5 Rd1+ 47. Kh2) 46... Rd1+ $1 {[%emt 0:01:05]} 47. Kh2 {[%emt 0:00:06]} Rf1 {[%emt 0:00:59] ( -> ...Rf2+)} 48. fxg5 {[%emt 0:02:34]} Nxf3+ {[%emt 0:00:20]} 49. Kg3 {[%emt 0:01:18]} Nxg5 {[%emt 0:00:27] White must now prevent ...Rf3+.} 50. Rh8+ {[%emt 0:00:42]} Kf7 {[%emt 0:00:07]} 51. Nd4 {[%emt 0:01:48] Inhibits Rf3+.} Ne4+ {[%emt 0:01:04]} 52. Kh4 {[%emt 0:00:29]} Rf4+ {[%emt 0:00:07] Weighted Error Value: White=0.44/Black=0.08 (flawless)} 0-1